[Event "*** Titled Tuesday Blitz"]
[Site "Chess.com"]
[Date "2020.02.04"]
[Round "1"]
[White "Grieve72"]
[Black "Bulldog167"]
[Result "0-1"]
[WhiteElo "2299"]
[BlackElo "2702"]
[TimeControl "180+2"]
[EndTime "9:09:57 PST"]
[Termination "Bulldog167 won by resignation"]

1. d4 {[%clk 0:02:57.4]} 1... Nf6 {[%clk 0:02:59.8]} 2. Bg5 {[%clk 0:02:57.2]}
2... d5 {[%clk 0:02:53.4]} 3. Bxf6 {[%clk 0:02:57.4]} 3... gxf6 {[%clk
0:02:52.7]} 4. c4 {[%clk 0:02:58]} 4... dxc4 {[%clk 0:02:51.7]} 5. e3 {[%clk
0:02:58.8]} 5... c5 {[%clk 0:02:51.1]} 6. Bxc4 {[%clk 0:02:59.5]} 6... cxd4
{[%clk 0:02:49.9]} 7. Nc3 {[%clk 0:03:01.4]} 7... dxc3 {[%clk 0:02:46.6]} 8.
Bxf7+ {[%clk 0:03:01.8]} 8... Kxf7 {[%clk 0:02:47.8]} 9. Qxd8 {[%clk 0:03:03.4]}
9... cxb2 {[%clk 0:02:41.7]} 10. Rb1 {[%clk 0:03:04.3]} 10... Nc6 {[%clk
0:02:42.6]} 11. Qc7 {[%clk 0:02:52.1]} 11... Rg8 {[%clk 0:02:29.5]} 12. Ne2
{[%clk 0:02:43.5]} 12... Bf5 {[%clk 0:02:19.2]} 13. Rxb2 {[%clk 0:02:34]} 13...
Ne5 {[%clk 0:02:20.7]} 14. O-O {[%clk 0:02:19.3]} 14... h5 {[%clk 0:01:55.9]}
15. Kh1 {[%clk 0:01:48.4]} 15... h4 {[%clk 0:01:45.8]} 16. Nf4 {[%clk
0:01:39.1]} 16... Bh6 {[%clk 0:01:38.6]} 17. f3 {[%clk 0:01:23.8]} 17... b6
{[%clk 0:01:29]} 18. Nd5 {[%clk 0:01:06.6]} 18... Rge8 {[%clk 0:01:27]} 19. e4
{[%clk 0:01:03.2]} 19... Be6 {[%clk 0:01:28.1]} 20. Rb5 {[%clk 0:00:51.1]} 20...
h3 {[%clk 0:01:20.1]} 21. Nxf6 {[%clk 0:00:38.2]} 21... hxg2+ {[%clk 0:01:21.1]}
22. Kxg2 {[%clk 0:00:39.2]} 22... Rg8+ {[%clk 0:00:59]} 23. Nxg8 {[%clk
0:00:39]} 23... Rxg8+ {[%clk 0:01:00.9]} 24. Kh1 {[%clk 0:00:26.7]} 24... Nd3
{[%clk 0:00:44.7]} 25. Qc2 {[%clk 0:00:17.6]} 25... Nf4 {[%clk 0:00:36.5]} 26.
Rg1 {[%clk 0:00:18.8]} 26... Rc8 {[%clk 0:00:35.3]} 27. Qb2 {[%clk 0:00:15.5]}
27... Nd3 {[%clk 0:00:31.2]} 28. Qg2 {[%clk 0:00:12]} 28... Nf4 {[%clk
0:00:31.1]} 29. Qb2 {[%clk 0:00:10.6]} 29... Nd3 {[%clk 0:00:31.9]} 30. Qg2
{[%clk 0:00:10.9]} 30... Nf4 {[%clk 0:00:33]} 31. Qg3 {[%clk 0:00:10.8]} 31...
Rc2 {[%clk 0:00:19.7]} 32. Qh4 {[%clk 0:00:07.6]} 32... Nh3 {[%clk 0:00:15.9]}
33. Qxh6 {[%clk 0:00:03.6]} 33... Nf2+ {[%clk 0:00:16.9]} 34. Kg2 {[%clk
0:00:04.2]} 34... Ng4+ {[%clk 0:00:18.5]} 35. Qd2 {[%clk 0:00:02.6]} 35... Rxd2+
{[%clk 0:00:19.5]} 36. Kg3 {[%clk 0:00:04.1]} 36... Nf6 {[%clk 0:00:12.5]} 37.
a4 {[%clk 0:00:04.2]} 37... Ra2 {[%clk 0:00:12.8]} 38. a5 {[%clk 0:00:02.6]}
38... bxa5 {[%clk 0:00:13.8]} 39. f4 {[%clk 0:00:04]} 39... Nxe4+ {[%clk
0:00:14.8]} 40. Kf3 {[%clk 0:00:05.5]} 40... Nd2+ {[%clk 0:00:14]} 41. Ke3
{[%clk 0:00:06.1]} 41... Nc4+ {[%clk 0:00:15.5]} 42. Kd4 {[%clk 0:00:07.6]}
42... Nd6 {[%clk 0:00:17]} 43. Rh5 {[%clk 0:00:07]} 43... Ke8 {[%clk 0:00:17.4]}
44. Rc1 {[%clk 0:00:05.6]} 44... a4 {[%clk 0:00:17]} 45. Ke5 {[%clk 0:00:04.9]}
45... Re2+ {[%clk 0:00:16.8]} 46. Kd4 {[%clk 0:00:04.9]} 46... a3 {[%clk
0:00:18.3]} 47. Ra5 {[%clk 0:00:03.9]} 47... a2 {[%clk 0:00:17.6]} 48. h4 {[%clk
0:00:03.6]} 48... Re4+ {[%clk 0:00:17.3]} 49. Kd3 {[%clk 0:00:04.3]} 49... Rxf4
{[%clk 0:00:18.5]} 50. h5 {[%clk 0:00:05.8]} 50... Rh4 {[%clk 0:00:19.8]} 51.
Rc7 {[%clk 0:00:05.3]} 51... Rh3+ {[%clk 0:00:18.8]} 52. Kd4 {[%clk 0:00:06.1]}
52... Nb5+ {[%clk 0:00:16.5]} 53. Ke5 {[%clk 0:00:03.2]} 53... Nxc7 {[%clk
0:00:17.2]} 54. Rxa7 {[%clk 0:00:04.5]} 54... Rxh5+ {[%clk 0:00:17.6]} 55. Kf4
{[%clk 0:00:05.9]} 55... Nd5+ {[%clk 0:00:16.1]} 0-1

[Event "*** Titled Tuesday Blitz"]
[Site "Chess.com"]
[Date "2020.02.04"]
[Round "1"]
[White "FelixJoseYnojosa"]
[Black "hongnhung1234"]
[Result "1-0"]
[WhiteElo "2665"]
[BlackElo "2273"]
[TimeControl "180+2"]
[EndTime "9:09:58 PST"]
[Termination "FelixJoseYnojosa won by checkmate"]

1. e4 {[%clk 0:03:01.4]} 1... c6 {[%clk 0:02:59.6]} 2. c4 {[%clk 0:03:02.1]}
2... d5 {[%clk 0:03:01.5]} 3. cxd5 {[%clk 0:03:04]} 3... cxd5 {[%clk 0:03:01.5]}
4. exd5 {[%clk 0:03:05.9]} 4... Qxd5 {[%clk 0:03:02.6]} 5. Nc3 {[%clk
0:03:06.6]} 5... Qd8 {[%clk 0:03:03.5]} 6. Nf3 {[%clk 0:03:08.1]} 6... Nf6
{[%clk 0:03:03]} 7. d4 {[%clk 0:03:09.7]} 7... Bg4 {[%clk 0:03:00.2]} 8. h3
{[%clk 0:03:04]} 8... Bh5 {[%clk 0:02:57.9]} 9. g4 {[%clk 0:03:04.6]} 9... Bg6
{[%clk 0:02:55.9]} 10. Ne5 {[%clk 0:03:05.8]} 10... e6 {[%clk 0:02:52.2]} 11.
Bb5+ {[%clk 0:03:06.1]} 11... Nbd7 {[%clk 0:02:50.6]} 12. Bg5 {[%clk 0:02:59.1]}
12... Be7 {[%clk 0:01:19.6]} 13. Bxf6 {[%clk 0:02:58.5]} 13... gxf6 {[%clk
0:01:18.3]} 14. Nxd7 {[%clk 0:02:54.2]} 14... a6 {[%clk 0:01:17.1]} 15. Nb6+
{[%clk 0:02:32.7]} 15... axb5 {[%clk 0:01:15.4]} 16. Nxa8 {[%clk 0:02:34.6]}
16... Qxa8 {[%clk 0:01:15.6]} 17. Nxb5 {[%clk 0:02:35.2]} 17... Qa5+ {[%clk
0:01:14.3]} 18. Nc3 {[%clk 0:02:35.8]} 18... h5 {[%clk 0:01:13.9]} 19. gxh5
{[%clk 0:02:26.5]} 19... Rxh5 {[%clk 0:01:10.9]} 20. Qf3 {[%clk 0:02:19.9]}
20... Qb4 {[%clk 0:01:07.7]} 21. O-O-O {[%clk 0:02:15.3]} 21... Bf8 {[%clk
0:00:48.8]} 22. Ne4 {[%clk 0:01:51.9]} 22... Qc4+ {[%clk 0:00:46.8]} 23. Kb1
{[%clk 0:01:49.4]} 23... Rh4 {[%clk 0:00:47.9]} 24. Rhe1 {[%clk 0:01:49.1]}
24... Qc6 {[%clk 0:00:46.8]} 25. d5 {[%clk 0:01:46.8]} 25... exd5 {[%clk
0:00:45.6]} 26. Ka1 {[%clk 0:01:39.7]} 26... Rxe4 {[%clk 0:00:46.5]} 27. Rxe4+
{[%clk 0:01:36.1]} 27... Bxe4 {[%clk 0:00:46.8]} 28. Qf4 {[%clk 0:01:32.2]}
28... Ba3 {[%clk 0:00:18.6]} 29. Rc1 {[%clk 0:01:17.9]} 29... Qb6 {[%clk
0:00:17.5]} 30. Qd2 {[%clk 0:01:15.4]} 30... Bb4 {[%clk 0:00:16.5]} 31. Qe2
{[%clk 0:01:13.3]} 31... Kf8 {[%clk 0:00:15.9]} 32. f3 {[%clk 0:01:14.5]} 32...
Bf5 {[%clk 0:00:16.6]} 33. h4 {[%clk 0:01:13.6]} 33... Be6 {[%clk 0:00:18]} 34.
h5 {[%clk 0:01:14.1]} 34... d4 {[%clk 0:00:18.1]} 35. a3 {[%clk 0:01:07.7]}
35... Qa5 {[%clk 0:00:18.1]} 36. Qc2 {[%clk 0:00:44.2]} 36... Bxa3 {[%clk
0:00:16.4]} 37. bxa3 {[%clk 0:00:46.1]} 37... Qxa3+ {[%clk 0:00:17.4]} 38. Kb1
{[%clk 0:00:47.7]} 38... Qb4+ {[%clk 0:00:18.7]} 39. Qb2 {[%clk 0:00:43.3]}
39... Bf5+ {[%clk 0:00:18.2]} 40. Ka2 {[%clk 0:00:41.5]} 40... Qa4+ {[%clk
0:00:18]} 41. Qa3+ {[%clk 0:00:42.4]} 41... Qxa3+ {[%clk 0:00:18.6]} 42. Kxa3
{[%clk 0:00:44.3]} 42... Kg7 {[%clk 0:00:19.1]} 43. Kb4 {[%clk 0:00:42.8]} 43...
Kh6 {[%clk 0:00:19.4]} 44. Rh1 {[%clk 0:00:44.2]} 44... d3 {[%clk 0:00:19.4]}
45. Kc3 {[%clk 0:00:45.4]} 45... b6 {[%clk 0:00:20.1]} 46. Kd2 {[%clk 0:00:47]}
46... Bh7 {[%clk 0:00:19.9]} 47. Ke3 {[%clk 0:00:48.2]} 47... Bf5 {[%clk
0:00:20.9]} 48. Kf4 {[%clk 0:00:49]} 48... Bh7 {[%clk 0:00:22.1]} 49. Kg4 {[%clk
0:00:48.1]} 49... b5 {[%clk 0:00:23.4]} 50. Rb1 {[%clk 0:00:46.6]} 50... d2
{[%clk 0:00:21.4]} 51. Rd1 {[%clk 0:00:47.7]} 51... f5+ {[%clk 0:00:22.5]} 52.
Kh4 {[%clk 0:00:44.8]} 52... b4 {[%clk 0:00:20.1]} 53. Rxd2 {[%clk 0:00:46]}
53... f6 {[%clk 0:00:21.5]} 54. Rb2 {[%clk 0:00:45.2]} 54... Bg8 {[%clk
0:00:22.4]} 55. Rxb4 {[%clk 0:00:46.4]} 55... Bf7 {[%clk 0:00:24.3]} 56. Rb6
{[%clk 0:00:40.1]} 56... Bxh5 {[%clk 0:00:25.2]} 57. Rxf6+ {[%clk 0:00:41.4]}
57... Bg6 {[%clk 0:00:26.7]} 58. f4 {[%clk 0:00:42.4]} 58... Kg7 {[%clk
0:00:26.3]} 59. Kg5 {[%clk 0:00:44.3]} 59... Bh7 {[%clk 0:00:27.7]} 60. Rb6
{[%clk 0:00:44.6]} 60... Kh8 {[%clk 0:00:27.3]} 61. Kf6 {[%clk 0:00:44.1]} 61...
Bg8 {[%clk 0:00:27.3]} 62. Kxf5 {[%clk 0:00:45.3]} 62... Kg7 {[%clk 0:00:28.3]}
63. Rb7+ {[%clk 0:00:45.3]} 63... Bf7 {[%clk 0:00:29.4]} 64. Ke5 {[%clk
0:00:46.8]} 64... Kf8 {[%clk 0:00:29.5]} 65. Kf6 {[%clk 0:00:47.5]} 65... Be8
{[%clk 0:00:30.1]} 66. Rb8 {[%clk 0:00:48]} 66... Kg8 {[%clk 0:00:29.6]} 67.
Rxe8+ {[%clk 0:00:49]} 67... Kh7 {[%clk 0:00:31.5]} 68. Rf8 {[%clk 0:00:49.2]}
68... Kh6 {[%clk 0:00:32.3]} 69. Rh8# {[%clk 0:00:50.2]} 1-0

[Event "*** Titled Tuesday Blitz"]
[Site "Chess.com"]
[Date "2020.02.04"]
[Round "1"]
[White "Alexander_Donchenko"]
[Black "Zarikovs1999"]
[Result "1-0"]
[WhiteElo "2728"]
[BlackElo "2351"]
[TimeControl "180+2"]
[EndTime "9:10:02 PST"]
[Termination "Alexander_Donchenko won by resignation"]

1. e4 {[%clk 0:03:01.2]} 1... c5 {[%clk 0:02:42.3]} 2. Nf3 {[%clk 0:03:01]} 2...
Nf6 {[%clk 0:02:35.3]} 3. e5 {[%clk 0:02:59.9]} 3... Nd5 {[%clk 0:02:36.1]} 4.
Nc3 {[%clk 0:03:01]} 4... e6 {[%clk 0:02:36.4]} 5. g3 {[%clk 0:03:01.4]} 5...
Nc6 {[%clk 0:02:36.1]} 6. Bg2 {[%clk 0:03:02.3]} 6... d6 {[%clk 0:02:35.6]} 7.
exd6 {[%clk 0:03:01.7]} 7... Bxd6 {[%clk 0:02:36.4]} 8. O-O {[%clk 0:03:00.6]}
8... O-O {[%clk 0:02:33.3]} 9. Ne4 {[%clk 0:02:58.9]} 9... Be7 {[%clk 0:02:34]}
10. d4 {[%clk 0:02:59.7]} 10... cxd4 {[%clk 0:02:31.4]} 11. Nxd4 {[%clk
0:03:01.6]} 11... Nxd4 {[%clk 0:02:25]} 12. Qxd4 {[%clk 0:03:03.5]} 12... Nf6
{[%clk 0:02:25.9]} 13. Rd1 {[%clk 0:02:51.5]} 13... Nxe4 {[%clk 0:02:18.7]} 14.
Bxe4 {[%clk 0:02:52.1]} 14... Qxd4 {[%clk 0:02:00.9]} 15. Rxd4 {[%clk
0:02:52.8]} 15... Bf6 {[%clk 0:02:00.8]} 16. Rb4 {[%clk 0:02:45.8]} 16... Rb8
{[%clk 0:01:31.6]} 17. Be3 {[%clk 0:02:37.5]} 17... b6 {[%clk 0:01:26.3]} 18. a4
{[%clk 0:02:34.1]} 18... Be7 {[%clk 0:01:09.8]} 19. Rb3 {[%clk 0:02:32.9]} 19...
Ba6 {[%clk 0:00:55.3]} 20. a5 {[%clk 0:02:32.5]} 20... Bc4 {[%clk 0:00:56.1]}
21. axb6 {[%clk 0:02:21.1]} 21... axb6 {[%clk 0:00:30.4]} 22. Rxb6 {[%clk
0:02:21.4]} 22... f5 {[%clk 0:00:25.2]} 23. Bf3 {[%clk 0:02:16.8]} 23... Bf6
{[%clk 0:00:18.4]} 24. c3 {[%clk 0:02:16.1]} 24... Rxb6 {[%clk 0:00:17.9]} 25.
Bxb6 {[%clk 0:02:16.9]} 25... Rb8 {[%clk 0:00:18.9]} 26. Ra8 {[%clk 0:02:17.9]}
26... Rxa8 {[%clk 0:00:15.7]} 27. Bxa8 {[%clk 0:02:19.8]} 27... Bb3 {[%clk
0:00:13.2]} 28. Kf1 {[%clk 0:02:16.6]} 28... Kf7 {[%clk 0:00:13.7]} 29. Bc6
{[%clk 0:02:16.3]} 29... Ke7 {[%clk 0:00:15]} 30. Bc5+ {[%clk 0:02:17.3]} 30...
Kd8 {[%clk 0:00:16.3]} 31. Bd6 {[%clk 0:02:18.6]} 31... Be7 {[%clk 0:00:11.7]}
32. Bxe7+ {[%clk 0:02:14.3]} 32... Kxe7 {[%clk 0:00:12.6]} 33. Ke2 {[%clk
0:02:14.9]} 33... Kd6 {[%clk 0:00:14]} 34. Bb5 {[%clk 0:02:15.3]} 34... Kc5
{[%clk 0:00:14.6]} 35. Bd3 {[%clk 0:02:16.1]} 35... g6 {[%clk 0:00:06.2]} 36.
Ke3 {[%clk 0:02:16.8]} 36... g5 {[%clk 0:00:06.8]} 37. f4 {[%clk 0:02:09.6]}
37... g4 {[%clk 0:00:07.2]} 38. Be2 {[%clk 0:02:04.5]} 38... Kd5 {[%clk
0:00:04.3]} 39. Bb5 {[%clk 0:02:05.3]} 39... Kc5 {[%clk 0:00:04.9]} 40. Be8
{[%clk 0:02:05.9]} 40... Kd5 {[%clk 0:00:06.3]} 41. Bf7 {[%clk 0:02:06.7]} 41...
Kc5 {[%clk 0:00:07.1]} 42. Bg8 {[%clk 0:02:07]} 42... h6 {[%clk 0:00:08.1]} 43.
Bf7 {[%clk 0:02:08]} 43... Kd5 {[%clk 0:00:09]} 44. Kd3 {[%clk 0:02:08.4]} 44...
Kc5 {[%clk 0:00:10.4]} 45. Ke3 {[%clk 0:01:52.7]} 45... Kd5 {[%clk 0:00:08.7]}
46. Be8 {[%clk 0:01:53.6]} 46... Kc5 {[%clk 0:00:09.8]} 47. Bd7 {[%clk
0:01:54.6]} 47... Kd5 {[%clk 0:00:10.6]} 48. Bc8 {[%clk 0:01:55.6]} 48... Kc5
{[%clk 0:00:11.6]} 49. Bb7 {[%clk 0:01:56.7]} 49... Ba4 {[%clk 0:00:03.7]} 50.
b4+ {[%clk 0:01:55.7]} 50... Kc4 {[%clk 0:00:05.1]} 51. Kd2 {[%clk 0:01:47.5]}
51... Bb5 {[%clk 0:00:06]} 52. Bg2 {[%clk 0:01:44.4]} 52... Kb3 {[%clk
0:00:04.3]} 53. h3 {[%clk 0:01:44.1]} 53... gxh3 {[%clk 0:00:04.2]} 54. Bxh3
{[%clk 0:01:45.2]} 54... Ba6 {[%clk 0:00:03.2]} 55. Bg2 {[%clk 0:01:45.3]} 55...
Bc4 {[%clk 0:00:04.5]} 56. Bf3 {[%clk 0:01:46.3]} 56... Kb2 {[%clk 0:00:05.6]}
57. Be2 {[%clk 0:01:47.3]} 57... Bd5 {[%clk 0:00:03]} 58. c4 {[%clk 0:01:45.9]}
58... Be4 {[%clk 0:00:04.2]} 59. c5 {[%clk 0:01:41]} 59... Kb3 {[%clk
0:00:04.5]} 60. b5 {[%clk 0:01:42.1]} 60... Kb4 {[%clk 0:00:04.6]} 61. c6 {[%clk
0:01:43.1]} 61... Kc5 {[%clk 0:00:04.9]} 62. Kc3 {[%clk 0:01:39.2]} 62... Kb6
{[%clk 0:00:02.2]} 63. Kd4 {[%clk 0:01:39.7]} 63... Bd5 {[%clk 0:00:03.6]} 64.
Ke5 {[%clk 0:01:40.5]} 64... Kc7 {[%clk 0:00:05]} 65. Kf6 {[%clk 0:01:41]} 65...
Bb3 {[%clk 0:00:06]} 66. Kg6 {[%clk 0:01:41.7]} 66... Bd5 {[%clk 0:00:07.3]} 67.
Kxh6 {[%clk 0:01:42.4]} 67... Bb3 {[%clk 0:00:08.4]} 68. Kg6 {[%clk 0:01:43.4]}
68... Bd5 {[%clk 0:00:09.8]} 69. Kf6 {[%clk 0:01:44.4]} 69... Bb3 {[%clk
0:00:11.2]} 70. Ke5 {[%clk 0:01:45.5]} 70... Bd5 {[%clk 0:00:12.1]} 71. Kd4
{[%clk 0:01:46.7]} 71... Kd6 {[%clk 0:00:10.6]} 72. Bc4 {[%clk 0:01:47.5]} 72...
Bf3 {[%clk 0:00:10.4]} 73. Bxe6 {[%clk 0:01:29.3]} 73... Kxe6 {[%clk 0:00:09.5]}
74. Kc5 {[%clk 0:01:30.8]} 74... Ke7 {[%clk 0:00:07.7]} 75. b6 {[%clk 0:01:32]}
75... Kd8 {[%clk 0:00:08.5]} 76. Kd6 {[%clk 0:01:33.3]} 76... Be4 {[%clk
0:00:05.8]} 77. b7 {[%clk 0:01:33.8]} 1-0

[Event "*** Titled Tuesday Blitz"]
[Site "Chess.com"]
[Date "2020.02.04"]
[Round "1"]
[White "riconaipe"]
[Black "DanielNaroditsky"]
[Result "0-1"]
[WhiteElo "2537"]
[BlackElo "3131"]
[TimeControl "180+2"]
[EndTime "9:10:13 PST"]
[Termination "DanielNaroditsky won on time"]

1. d4 {[%clk 0:03:00]} 1... Nf6 {[%clk 0:03:01.2]} 2. c4 {[%clk 0:02:59.3]} 2...
g6 {[%clk 0:03:01.7]} 3. Nc3 {[%clk 0:02:58.7]} 3... Bg7 {[%clk 0:03:03.4]} 4.
e4 {[%clk 0:02:59.3]} 4... d6 {[%clk 0:03:05.1]} 5. Nge2 {[%clk 0:03:00.2]} 5...
c6 {[%clk 0:03:04.3]} 6. f3 {[%clk 0:03:00.2]} 6... a6 {[%clk 0:03:04.7]} 7. Be3
{[%clk 0:03:01.1]} 7... b5 {[%clk 0:03:06]} 8. Nf4 {[%clk 0:02:52]} 8... Nbd7
{[%clk 0:03:02]} 9. Qd2 {[%clk 0:02:52.7]} 9... Bb7 {[%clk 0:02:58]} 10. d5
{[%clk 0:02:50.9]} 10... bxc4 {[%clk 0:02:54.4]} 11. Bxc4 {[%clk 0:02:51.2]}
11... O-O {[%clk 0:02:55]} 12. O-O {[%clk 0:02:49.6]} 12... Ne5 {[%clk
0:02:49.3]} 13. Bb3 {[%clk 0:02:48.8]} 13... Rc8 {[%clk 0:02:50.8]} 14. Rac1
{[%clk 0:02:49.1]} 14... c5 {[%clk 0:02:41]} 15. Nd3 {[%clk 0:02:32.4]} 15...
Nfd7 {[%clk 0:02:13]} 16. Nxe5 {[%clk 0:02:29.3]} 16... Nxe5 {[%clk 0:02:14.9]}
17. h3 {[%clk 0:02:28.7]} 17... a5 {[%clk 0:02:07.8]} 18. f4 {[%clk 0:02:26.9]}
18... Nd7 {[%clk 0:02:09]} 19. Bc4 {[%clk 0:02:22.2]} 19... Qb6 {[%clk
0:02:04.1]} 20. b3 {[%clk 0:02:20]} 20... Qb4 {[%clk 0:01:54.8]} 21. Nb5 {[%clk
0:02:13.5]} 21... Nb6 {[%clk 0:01:50.7]} 22. a3 {[%clk 0:02:07.1]} 22... Qxd2
{[%clk 0:01:28.4]} 23. Bxd2 {[%clk 0:02:07.9]} 23... a4 {[%clk 0:01:30.3]} 24.
Ba5 {[%clk 0:01:51.5]} 24... Nd7 {[%clk 0:01:30.2]} 25. Bc3 {[%clk 0:01:50.6]}
25... axb3 {[%clk 0:01:26.7]} 26. Bxg7 {[%clk 0:01:45.1]} 26... Kxg7 {[%clk
0:01:28.6]} 27. Bxb3 {[%clk 0:01:45.8]} 27... Ba6 {[%clk 0:01:30]} 28. Bc4
{[%clk 0:01:42.5]} 28... Nb6 {[%clk 0:01:31.2]} 29. Nxd6 {[%clk 0:01:35.5]}
29... exd6 {[%clk 0:01:32.5]} 30. Bxa6 {[%clk 0:01:36.3]} 30... Ra8 {[%clk
0:01:34.4]} 31. Bb7 {[%clk 0:01:32.9]} 31... Rxa3 {[%clk 0:01:33.8]} 32. e5
{[%clk 0:01:34.3]} 32... Rd8 {[%clk 0:01:24.9]} 33. exd6 {[%clk 0:01:34.4]}
33... c4 {[%clk 0:01:25.4]} 34. Rb1 {[%clk 0:01:30.8]} 34... Rxd6 {[%clk
0:01:26.6]} 35. Rb5 {[%clk 0:01:27.1]} 35... c3 {[%clk 0:01:26.3]} 36. Rc5
{[%clk 0:01:26.2]} 36... Nd7 {[%clk 0:01:17.4]} 37. Rc6 {[%clk 0:01:24.4]} 37...
Rxd5 {[%clk 0:01:16.2]} 38. Rxc3 {[%clk 0:01:09.5]} 38... Rxc3 {[%clk
0:01:18.1]} 39. Bxd5 {[%clk 0:01:10.6]} 39... h5 {[%clk 0:01:19.1]} 40. Rb1
{[%clk 0:01:03.6]} 40... Nc5 {[%clk 0:01:18.6]} 41. Rf1 {[%clk 0:00:59.1]} 41...
h4 {[%clk 0:01:12.6]} 42. f5 {[%clk 0:00:59.2]} 42... g5 {[%clk 0:01:13.9]} 43.
Re1 {[%clk 0:00:51.3]} 43... Kf6 {[%clk 0:01:13.5]} 44. Be4 {[%clk 0:00:39.8]}
44... Nd7 {[%clk 0:01:07.3]} 45. Bb1 {[%clk 0:00:40.2]} 45... Ne5 {[%clk
0:01:08.7]} 46. Rd1 {[%clk 0:00:37.7]} 46... Nc4 {[%clk 0:01:06.6]} 47. Kf2
{[%clk 0:00:28.6]} 47... Rb3 {[%clk 0:01:08]} 48. Kg1 {[%clk 0:00:24.6]} 48...
Rb2 {[%clk 0:01:04.9]} 49. Re1 {[%clk 0:00:25]} 49... Ne5 {[%clk 0:00:57.1]} 50.
Be4 {[%clk 0:00:23.8]} 50... Nd7 {[%clk 0:00:49.9]} 51. Rb1 {[%clk 0:00:17.8]}
51... Rd2 {[%clk 0:00:51.3]} 52. Re1 {[%clk 0:00:14.8]} 52... Nb6 {[%clk
0:00:48.3]} 53. Rc1 {[%clk 0:00:13.1]} 53... Ke5 {[%clk 0:00:49.1]} 54. Bf3
{[%clk 0:00:13.2]} 54... Kxf5 {[%clk 0:00:47.9]} 55. Rc5+ {[%clk 0:00:12.7]}
55... Kf4 {[%clk 0:00:49]} 56. Bg4 {[%clk 0:00:13.6]} 56... Nd5 {[%clk 0:00:48]}
57. Bf3 {[%clk 0:00:09.9]} 57... Ne3 {[%clk 0:00:47.7]} 58. Rc1 {[%clk
0:00:03.6]} 58... f5 {[%clk 0:00:42.7]} 59. Bc6 {[%clk 0:00:05.2]} 59... Kg3
{[%clk 0:00:39.4]} 60. Re1 {[%clk 0:00:03.7]} 60... Nxg2 {[%clk 0:00:39.6]} 61.
Rf1 {[%clk 0:00:04.1]} 61... g4 {[%clk 0:00:20.8]} 62. Rxf5 {[%clk 0:00:05]}
62... Ne3 {[%clk 0:00:21]} 63. hxg4 {[%clk 0:00:03.6]} 63... Rd1+ {[%clk
0:00:21.8]} 0-1

[Event "*** Titled Tuesday Blitz"]
[Site "Chess.com"]
[Date "2020.02.04"]
[Round "1"]
[White "renehp"]
[Black "DevikBronstein"]
[Result "1/2-1/2"]
[WhiteElo "2365"]
[BlackElo "2724"]
[TimeControl "180+2"]
[EndTime "9:10:27 PST"]
[Termination "Game drawn by repetition"]

1. e4 {[%clk 0:02:58.3]} 1... c5 {[%clk 0:03:00.1]} 2. Nf3 {[%clk 0:02:59.1]}
2... Nc6 {[%clk 0:03:01.1]} 3. d4 {[%clk 0:03:00.2]} 3... cxd4 {[%clk
0:03:02.1]} 4. Nxd4 {[%clk 0:03:01.3]} 4... Nf6 {[%clk 0:03:02.5]} 5. Nc3 {[%clk
0:03:02.2]} 5... e5 {[%clk 0:03:03.5]} 6. Ndb5 {[%clk 0:03:03.1]} 6... d6 {[%clk
0:03:04.8]} 7. Bg5 {[%clk 0:03:04.3]} 7... a6 {[%clk 0:03:04.7]} 8. Na3 {[%clk
0:03:05.6]} 8... b5 {[%clk 0:03:05.9]} 9. Bxf6 {[%clk 0:03:07]} 9... gxf6 {[%clk
0:03:06.9]} 10. Nd5 {[%clk 0:03:08.2]} 10... f5 {[%clk 0:03:07.7]} 11. Nxb5
{[%clk 0:03:08.7]} 11... axb5 {[%clk 0:03:06.5]} 12. Bxb5 {[%clk 0:03:09.9]}
12... Bd7 {[%clk 0:02:51.3]} 13. exf5 {[%clk 0:03:10.9]} 13... Bg7 {[%clk
0:02:41.6]} 14. O-O {[%clk 0:03:11.6]} 14... O-O {[%clk 0:02:42.2]} 15. Qh5
{[%clk 0:03:12.4]} 15... Ra5 {[%clk 0:02:34]} 16. a4 {[%clk 0:03:11.5]} 16... f6
{[%clk 0:02:30.6]} 17. b4 {[%clk 0:02:59.8]} 17... Ra8 {[%clk 0:02:30.4]} 18. c3
{[%clk 0:02:58.3]} 18... Be8 {[%clk 0:02:17.8]} 19. Qf3 {[%clk 0:02:49.5]} 19...
Rc8 {[%clk 0:02:18.6]} 20. Rfd1 {[%clk 0:02:47.3]} 20... Kh8 {[%clk 0:02:12]}
21. a5 {[%clk 0:02:47.2]} 21... Nd4 {[%clk 0:02:12.7]} 22. cxd4 {[%clk
0:02:40.8]} 22... Bxb5 {[%clk 0:02:13.7]} 23. a6 {[%clk 0:02:35.2]} 23... Ra8
{[%clk 0:02:08.8]} 24. dxe5 {[%clk 0:02:29.8]} 24... fxe5 {[%clk 0:02:09.3]} 25.
a7 {[%clk 0:02:22.5]} 25... Bc6 {[%clk 0:02:05.1]} 26. Rdc1 {[%clk 0:02:07]}
26... e4 {[%clk 0:01:50.3]} 27. Qxe4 {[%clk 0:01:46.8]} 27... Bxd5 {[%clk
0:01:51.3]} 28. Qxd5 {[%clk 0:01:46.7]} 28... Bxa1 {[%clk 0:01:52.2]} 29. Rxa1
{[%clk 0:01:47.7]} 29... Qf6 {[%clk 0:01:53.1]} 30. Ra5 {[%clk 0:01:44.5]} 30...
Qg7 {[%clk 0:01:42.2]} 31. Qxd6 {[%clk 0:01:38.4]} 31... Rg8 {[%clk 0:01:28.8]}
32. g3 {[%clk 0:01:37.3]} 32... Rxa7 {[%clk 0:01:28]} 33. f6 {[%clk 0:01:36.3]}
33... Qf7 {[%clk 0:01:23.1]} 34. h4 {[%clk 0:01:28.7]} 34... Rd7 {[%clk
0:01:12.4]} 35. Qf4 {[%clk 0:01:26.6]} 35... Rf8 {[%clk 0:01:04.3]} 36. Rf5
{[%clk 0:01:20.9]} 36... Rd1+ {[%clk 0:01:01.9]} 37. Kh2 {[%clk 0:01:21.4]}
37... Qb7 {[%clk 0:01:00.1]} 38. f3 {[%clk 0:01:22.2]} 38... Qa7 {[%clk
0:01:01.3]} 39. f7 {[%clk 0:01:20]} 39... Qd4 {[%clk 0:00:44.4]} 40. Qg5 {[%clk
0:01:09.6]} 40... Qg7 {[%clk 0:00:28.4]} 41. Qe7 {[%clk 0:01:05.6]} 41... Qb2+
{[%clk 0:00:26.6]} 42. Kh3 {[%clk 0:00:56.4]} 42... Rh1+ {[%clk 0:00:27.4]} 43.
Kg4 {[%clk 0:00:57.3]} 43... Qg7+ {[%clk 0:00:29]} 44. Kf4 {[%clk 0:00:51.8]}
44... Rg1 {[%clk 0:00:29.6]} 45. g4 {[%clk 0:00:22.9]} 45... Qd4+ {[%clk
0:00:30.3]} 46. Kg5 {[%clk 0:00:23.3]} 46... Qg7+ {[%clk 0:00:30.8]} 47. Kf4
{[%clk 0:00:24.1]} 47... Rd1 {[%clk 0:00:32]} 48. h5 {[%clk 0:00:21.6]} 48... h6
{[%clk 0:00:30.6]} 49. Rf6 {[%clk 0:00:19]} 49... Qg5+ {[%clk 0:00:26.6]} 50.
Kg3 {[%clk 0:00:19.8]} 50... Rdd8 {[%clk 0:00:20.2]} 51. Qe6 {[%clk 0:00:19.2]}
51... Kh7 {[%clk 0:00:19.9]} 52. Rg6 {[%clk 0:00:20]} 52... Qc1 {[%clk
0:00:17.8]} 53. Qf5 {[%clk 0:00:17.7]} 53... Qg1+ {[%clk 0:00:18.5]} 54. Kh3
{[%clk 0:00:18.1]} 54... Qh1+ {[%clk 0:00:19.2]} 55. Kg3 {[%clk 0:00:19.6]}
55... Qe1+ {[%clk 0:00:19]} 56. Kh3 {[%clk 0:00:19.8]} 56... Qh1+ {[%clk
0:00:18.7]} 57. Kg3 {[%clk 0:00:20.9]} 57... Qg1+ {[%clk 0:00:13.3]} 58. Kh3
{[%clk 0:00:22.2]} 58... Qf1+ {[%clk 0:00:07.3]} 59. Kg3 {[%clk 0:00:23.2]}
59... Qg1+ {[%clk 0:00:08.3]} 1/2-1/2